[Event "Titled Tuesday Blitz July 11 Early 2023"]
[White "Thiel, Thomas"]
[Black "Lehtosaari, Mauri"]
[WhiteFideId "4615964"]
[BlackFideId "501999"]
[WhiteElo "2227"]
[BlackElo "2511"]
[Result "1/2-1/2"]
[Round "5"]
[TimeControl "180+2"]
[Date "2023.07.11"]
[WhiteClock "0:00:48"]
[BlackClock "0:00:32"]
[Board "128"]

1. e4 {[%clk 0:03:00]}  c5 {[%clk 0:02:51]} 2. Nc3 {[%clk 0:02:59]}  e6 {[%clk 0:02:49]} 3. Nge2 {[%clk 0:02:57]}  Nc6 {[%clk 0:02:46]} 4. g3 {[%clk 0:02:56]}  Nf6 {[%clk 0:02:44]} 5. Bg2 {[%clk 0:02:56]}  d5 {[%clk 0:02:33]} 6. exd5 {[%clk 0:02:57]}  exd5 {[%clk 0:02:34]} 7. d4 {[%clk 0:02:56]}  cxd4 {[%clk 0:02:29]} 8. Nxd4 {[%clk 0:02:57]}  Be7 {[%clk 0:02:30]} 9. O-O {[%clk 0:02:55]}  O-O {[%clk 0:02:29]} 10. Bg5 {[%clk 0:02:53]}  h6 {[%clk 0:02:25]} 11. Bf4 {[%clk 0:02:48]}  Nxd4 {[%clk 0:02:21]} 12. Qxd4 {[%clk 0:02:44]}  Be6 {[%clk 0:02:22]} 13. Rad1 {[%clk 0:02:39]}  Qd7 {[%clk 0:02:09]} 14. Nxd5 {[%clk 0:02:31]}  Nxd5 {[%clk 0:02:05]} 15. Bxd5 {[%clk 0:02:30]}  Bf6 {[%clk 0:01:54]} 16. Be5 {[%clk 0:02:30]}  Qxd5 {[%clk 0:01:38]} 17. Qxd5 {[%clk 0:02:17]}  Bxd5 {[%clk 0:01:36]} 18. Rxd5 {[%clk 0:02:03]}  Bxe5 {[%clk 0:01:34]} 19. Rxe5 {[%clk 0:02:04]}  Rac8 {[%clk 0:01:35]} 20. c3 {[%clk 0:02:04]}  Rc7 {[%clk 0:01:17]} 21. Rfe1 {[%clk 0:02:02]}  g6 {[%clk 0:01:14]} 22. Re7 {[%clk 0:02:01]}  Rfc8 {[%clk 0:01:13]} 23. Kg2 {[%clk 0:02:01]}  Kg7 {[%clk 0:01:13]} 24. h4 {[%clk 0:02:00]}  Kf6 {[%clk 0:01:11]} 25. Rxc7 {[%clk 0:01:57]}  Rxc7 {[%clk 0:01:12]} 26. Re4 {[%clk 0:01:55]}  Rd7 {[%clk 0:01:11]} 27. a4 {[%clk 0:01:51]}  Rd2 {[%clk 0:01:08]} 28. Rb4 {[%clk 0:01:50]}  b6 {[%clk 0:01:07]} 29. Rb5 {[%clk 0:01:44]}  h5 {[%clk 0:01:07]} 30. a5 {[%clk 0:01:43]}  bxa5 {[%clk 0:01:06]} 31. Rxa5 {[%clk 0:01:44]}  Rxb2 {[%clk 0:01:06]} 32. Rxa7 {[%clk 0:01:43]}  Rc2 {[%clk 0:01:04]} 33. Rc7 {[%clk 0:01:42]}  Ke6 {[%clk 0:01:03]} 34. Kf3 {[%clk 0:01:33]}  f6 {[%clk 0:00:59]} 35. Ke3 {[%clk 0:01:23]}  Kd6 {[%clk 0:00:55]} 36. Rc8 {[%clk 0:01:23]}  Kd7 {[%clk 0:00:54]} 37. Rc4 {[%clk 0:01:22]}  Kd6 {[%clk 0:00:54]} 38. f3 {[%clk 0:01:22]}  Kd5 {[%clk 0:00:52]} 39. Rc8 {[%clk 0:01:21]}  Rc1 {[%clk 0:00:48]} 40. Kf4 {[%clk 0:01:21]}  Kd6 {[%clk 0:00:43]} 41. Rc4 {[%clk 0:01:16]}  Kd5 {[%clk 0:00:38]} 42. Rc8 {[%clk 0:01:15]}  Ke6 {[%clk 0:00:38]} 43. g4 {[%clk 0:01:12]}  hxg4 {[%clk 0:00:36]} 44. fxg4 {[%clk 0:01:12]}  Rf1+ {[%clk 0:00:36]} 45. Kg3 {[%clk 0:01:10]}  Rg1+ {[%clk 0:00:36]} 46. Kf3 {[%clk 0:01:09]}  Rh1 {[%clk 0:00:32]} 47. Kg3 {[%clk 0:01:05]}  Rg1+ {[%clk 0:00:32]} 48. Kf3 {[%clk 0:01:05]}  Rh1 {[%clk 0:00:32]} 49. Kg3 {[%clk 0:00:48]}  Rg1+ {[%clk 0:00:32]} 1/2-1/2


[Site "https://www.chess.com"]

[Event "Titled Tuesday Blitz July 11 Early 2023"]
[White "Sailer, Mike"]
[Black "Brunner, Nicolas"]
[WhiteFideId "2012901"]
[BlackFideId "620246"]
[WhiteElo "2150"]
[BlackElo "2505"]
[Result "0-1"]
[Round "5"]
[TimeControl "180+2"]
[Date "2023.07.11"]
[WhiteClock "0:00:00"]
[BlackClock "0:00:39"]
[Board "130"]

1. d4 {[%clk 0:02:58]}  Nf6 {[%clk 0:02:58]} 2. Nc3 {[%clk 0:02:57]}  d5 {[%clk 0:02:57]} 3. Bf4 {[%clk 0:02:57]}  e6 {[%clk 0:02:52]} 4. Nb5 {[%clk 0:02:53]}  Na6 {[%clk 0:02:50]} 5. e3 {[%clk 0:02:54]}  c6 {[%clk 0:02:34]} 6. Nc3 {[%clk 0:02:54]}  Nc7 {[%clk 0:02:33]} 7. a3 {[%clk 0:02:53]}  Bd6 {[%clk 0:02:32]} 8. Nf3 {[%clk 0:02:52]}  O-O {[%clk 0:02:31]} 9. Ne5 {[%clk 0:02:51]}  c5 {[%clk 0:02:30]} 10. dxc5 {[%clk 0:02:45]}  Bxc5 {[%clk 0:02:30]} 11. Bd3 {[%clk 0:02:45]}  h6 {[%clk 0:02:25]} 12. Qf3 {[%clk 0:02:43]}  b5 {[%clk 0:02:13]} 13. Qh3 {[%clk 0:02:37]}  b4 {[%clk 0:02:02]} 14. axb4 {[%clk 0:02:30]}  Bxb4 {[%clk 0:02:02]} 15. O-O {[%clk 0:02:28]}  a5 {[%clk 0:01:48]} 16. Bxh6 {[%clk 0:01:32]}  gxh6 {[%clk 0:01:47]} 17. Qxh6 {[%clk 0:01:32]}  Bxc3 {[%clk 0:00:59]} 18. bxc3 {[%clk 0:01:29]}  Ne4 {[%clk 0:00:57]} 19. Bxe4 {[%clk 0:01:10]}  dxe4 {[%clk 0:00:57]} 20. Rad1 {[%clk 0:00:29]}  Qe7 {[%clk 0:00:56]} 21. Rd4 {[%clk 0:00:14]}  f5 {[%clk 0:00:53]} 22. Ng6 {[%clk 0:00:12]}  Qf6 {[%clk 0:00:45]} 23. Qxf8+ {[%clk 0:00:10]}  Qxf8 {[%clk 0:00:45]} 24. Nxf8 {[%clk 0:00:10]}  Kxf8 {[%clk 0:00:45]} 25. Ra4 {[%clk 0:00:06]}  Bd7 {[%clk 0:00:44]} 26. Ra3 {[%clk 0:00:06]}  a4 {[%clk 0:00:43]} 27. Rd1 {[%clk 0:00:05]}  Ke7 {[%clk 0:00:43]} 28. Rd4 {[%clk 0:00:04]}  Nd5 {[%clk 0:00:42]} 29. Rc4 {[%clk 0:00:02]}  Rb8 {[%clk 0:00:40]} 30. g3 {[%clk 0:00:01]}  Rb2 {[%clk 0:00:39]} 31. Kg2 {[%clk 0:00:00]}  Rxc2 {[%clk 0:00:39]} 0-1


[Site "https://www.chess.com"]

[Event "Titled Tuesday Blitz July 11 Early 2023"]
[White "Haug, Havard"]
[Black "Fule, Simon"]
[WhiteFideId "1547887"]
[BlackFideId "787515"]
[WhiteElo "2635"]
[BlackElo "2404"]
[Result "1-0"]
[Round "5"]
[TimeControl "180+2"]
[Date "2023.07.11"]
[WhiteClock "0:00:14"]
[BlackClock "0:00:00"]
[Board "134"]

1. e4 {[%clk 0:03:00]}  e5 {[%clk 0:02:59]} 2. Nc3 {[%clk 0:02:53]}  Nf6 {[%clk 0:02:59]} 3. Bc4 {[%clk 0:02:50]}  Nc6 {[%clk 0:02:58]} 4. d3 {[%clk 0:02:50]}  g6 {[%clk 0:02:52]} 5. Nge2 {[%clk 0:02:47]}  Bg7 {[%clk 0:02:52]} 6. O-O {[%clk 0:02:46]}  d6 {[%clk 0:02:51]} 7. f4 {[%clk 0:02:43]}  Na5 {[%clk 0:02:49]} 8. fxe5 {[%clk 0:02:27]}  dxe5 {[%clk 0:02:46]} 9. Nd5 {[%clk 0:02:24]}  Nxc4 {[%clk 0:02:36]} 10. Bg5 {[%clk 0:02:22]}  Nxb2 {[%clk 0:02:04]} 11. Qc1 {[%clk 0:02:03]}  c6 {[%clk 0:01:40]} 12. Nxf6+ {[%clk 0:02:03]}  Bxf6 {[%clk 0:01:36]} 13. Bxf6 {[%clk 0:02:04]}  Qb6+ {[%clk 0:01:36]} 14. Kh1 {[%clk 0:02:03]}  Rg8 {[%clk 0:01:33]} 15. Rb1 {[%clk 0:02:02]}  Nxd3 {[%clk 0:01:32]} 16. cxd3 {[%clk 0:02:01]}  Qc7 {[%clk 0:01:30]} 17. Qc5 {[%clk 0:01:58]}  Bg4 {[%clk 0:01:28]} 18. Ng3 {[%clk 0:01:57]}  b6 {[%clk 0:01:22]} 19. Qxe5+ {[%clk 0:01:56]}  Qxe5 {[%clk 0:01:23]} 20. Bxe5 {[%clk 0:01:57]}  Rd8 {[%clk 0:01:23]} 21. Rb3 {[%clk 0:01:48]}  h5 {[%clk 0:01:22]} 22. h4 {[%clk 0:01:46]}  Kd7 {[%clk 0:01:19]} 23. Ba1 {[%clk 0:01:27]}  Kc8 {[%clk 0:01:11]} 24. Ra3 {[%clk 0:01:24]}  Be6 {[%clk 0:01:05]} 25. Rxa7 {[%clk 0:01:22]}  Rge8 {[%clk 0:00:59]} 26. d4 {[%clk 0:01:17]}  Kb8 {[%clk 0:00:58]} 27. Ra3 {[%clk 0:01:16]}  Kb7 {[%clk 0:00:59]} 28. Re1 {[%clk 0:01:11]}  Ra8 {[%clk 0:00:53]} 29. Ree3 {[%clk 0:01:07]}  Bxa2 {[%clk 0:00:52]} 30. Rxa8 {[%clk 0:01:01]}  Rxa8 {[%clk 0:00:53]} 31. Ne2 {[%clk 0:00:56]}  Bc4 {[%clk 0:00:50]} 32. Bc3 {[%clk 0:00:55]}  Ra3 {[%clk 0:00:48]} 33. Nc1 {[%clk 0:00:44]}  b5 {[%clk 0:00:42]} 34. Bd2 {[%clk 0:00:43]}  Ra1 {[%clk 0:00:40]} 35. Re1 {[%clk 0:00:37]}  Rb1 {[%clk 0:00:24]} 36. Kh2 {[%clk 0:00:36]}  b4 {[%clk 0:00:20]} 37. d5 {[%clk 0:00:32]}  b3 {[%clk 0:00:15]} 38. Nxb3 {[%clk 0:00:26]}  Rxb3 {[%clk 0:00:13]} 39. dxc6+ {[%clk 0:00:19]}  Kxc6 {[%clk 0:00:14]} 40. Rc1 {[%clk 0:00:19]}  Kb5 {[%clk 0:00:14]} 41. Bg5 {[%clk 0:00:18]}  Rb2 {[%clk 0:00:09]} 42. Kg3 {[%clk 0:00:18]}  Re2 {[%clk 0:00:07]} 43. Kf3 {[%clk 0:00:16]}  Bd3 {[%clk 0:00:04]} 44. Rc3 {[%clk 0:00:14]}  Rxe4 {[%clk 0:00:02]} 45. Rxd3 {[%clk 0:00:15]}  Rg4 {[%clk 0:00:02]} 46. Rd7 {[%clk 0:00:14]}  f5 {[%clk 0:00:02]} 47. Rd6 {[%clk 0:00:14]}  Re4 {[%clk 0:00:01]} 48. Rxg6 {[%clk 0:00:14]}  Re1 {[%clk 0:00:00]} 49. Rf6 {[%clk 0:00:14]} 1-0


[Site "https://www.chess.com"]

[Event "Titled Tuesday Blitz July 11 Early 2023"]
[White "Herman, Matthew"]
[Black "Arat, Ufuk Sezen"]
[WhiteFideId "2028964"]
[BlackFideId "6309089"]
[WhiteElo "2402"]
[BlackElo "2573"]
[Result "0-1"]
[Round "5"]
[TimeControl "180+2"]
[Date "2023.07.11"]
[WhiteClock "0:00:00"]
[BlackClock "0:01:10"]
[Board "135"]

1. e4 {[%clk 0:03:00]}  c5 {[%clk 0:03:00]} 2. d4 {[%clk 0:02:57]}  cxd4 {[%clk 0:03:00]} 3. c3 {[%clk 0:02:58]}  dxc3 {[%clk 0:03:01]} 4. Nxc3 {[%clk 0:02:59]}  e6 {[%clk 0:02:59]} 5. Nf3 {[%clk 0:02:59]}  Nc6 {[%clk 0:03:00]} 6. Bc4 {[%clk 0:02:59]}  a6 {[%clk 0:03:00]} 7. O-O {[%clk 0:03:00]}  Nge7 {[%clk 0:03:01]} 8. Bg5 {[%clk 0:02:59]}  h6 {[%clk 0:03:02]} 9. Be3 {[%clk 0:02:59]}  b5 {[%clk 0:02:55]} 10. Bb3 {[%clk 0:02:59]}  Bb7 {[%clk 0:02:54]} 11. Re1 {[%clk 0:02:57]}  Na5 {[%clk 0:02:47]} 12. h4 {[%clk 0:01:16]}  Nxb3 {[%clk 0:02:30]} 13. axb3 {[%clk 0:01:16]}  d6 {[%clk 0:02:25]} 14. h5 {[%clk 0:01:12]}  Nc6 {[%clk 0:02:23]} 15. Qe2 {[%clk 0:00:37]}  Be7 {[%clk 0:02:17]} 16. Rad1 {[%clk 0:00:37]}  O-O {[%clk 0:02:15]} 17. Bf4 {[%clk 0:00:32]}  Kh7 {[%clk 0:02:11]} 18. Rd2 {[%clk 0:00:26]}  Qc7 {[%clk 0:01:47]} 19. Rc1 {[%clk 0:00:23]}  Rad8 {[%clk 0:01:41]} 20. Nd5 {[%clk 0:00:21]}  exd5 {[%clk 0:01:40]} 21. exd5 {[%clk 0:00:22]}  Bf6 {[%clk 0:01:40]} 22. dxc6 {[%clk 0:00:21]}  Bc8 {[%clk 0:01:31]} 23. Qd3+ {[%clk 0:00:17]}  Kg8 {[%clk 0:01:32]} 24. Bxd6 {[%clk 0:00:13]}  Qa7 {[%clk 0:01:30]} 25. c7 {[%clk 0:00:10]}  Rd7 {[%clk 0:01:24]} 26. Qd5 {[%clk 0:00:04]}  Re8 {[%clk 0:01:21]} 27. Qc6 {[%clk 0:00:02]}  Qb7 {[%clk 0:01:09]} 28. Qxb7 {[%clk 0:00:00]}  Bxb7 {[%clk 0:01:10]} 0-1


[Site "https://www.chess.com"]

[Event "Titled Tuesday Blitz July 11 Early 2023"]
[White "Slavin, Alexey"]
[Black "Orlov, Georgi"]
[WhiteFideId "24104388"]
[BlackFideId "2011271"]
[WhiteElo "2356"]
[BlackElo "2545"]
[Result "0-1"]
[Round "5"]
[TimeControl "180+2"]
[Date "2023.07.11"]
[WhiteClock "0:00:00"]
[BlackClock "0:00:30"]
[Board "138"]

1. e4 {[%clk 0:02:59]}  d6 {[%clk 0:02:57]} 2. d4 {[%clk 0:02:58]}  Nf6 {[%clk 0:02:58]} 3. Nc3 {[%clk 0:02:59]}  g6 {[%clk 0:02:58]} 4. Be3 {[%clk 0:02:58]}  Bg7 {[%clk 0:02:59]} 5. Qd2 {[%clk 0:02:58]}  Ng4 {[%clk 0:02:59]} 6. Bg5 {[%clk 0:02:58]}  h6 {[%clk 0:02:59]} 7. Bh4 {[%clk 0:02:58]}  c6 {[%clk 0:02:54]} 8. f3 {[%clk 0:02:56]}  Nf6 {[%clk 0:02:54]} 9. Nge2 {[%clk 0:02:56]}  b5 {[%clk 0:02:52]} 10. a3 {[%clk 0:02:56]}  Bb7 {[%clk 0:02:48]} 11. g4 {[%clk 0:02:47]}  a6 {[%clk 0:02:45]} 12. Bg3 {[%clk 0:02:45]}  Nbd7 {[%clk 0:02:35]} 13. h4 {[%clk 0:02:45]}  c5 {[%clk 0:02:33]} 14. h5 {[%clk 0:02:44]}  cxd4 {[%clk 0:02:22]} 15. Nxd4 {[%clk 0:02:40]}  gxh5 {[%clk 0:02:02]} 16. Nf5 {[%clk 0:02:35]}  Bf8 {[%clk 0:02:02]} 17. gxh5 {[%clk 0:02:29]}  Rc8 {[%clk 0:02:01]} 18. O-O-O {[%clk 0:02:16]}  Qc7 {[%clk 0:01:51]} 19. Kb1 {[%clk 0:02:16]}  Nb6 {[%clk 0:01:43]} 20. Bh4 {[%clk 0:01:54]}  Nfd7 {[%clk 0:01:37]} 21. Rg1 {[%clk 0:01:35]}  Ne5 {[%clk 0:01:35]} 22. Be2 {[%clk 0:01:22]}  Nbc4 {[%clk 0:01:30]} 23. Bxc4 {[%clk 0:01:02]}  Nxc4 {[%clk 0:01:25]} 24. Qd4 {[%clk 0:01:01]}  e5 {[%clk 0:01:23]} 25. Qe3 {[%clk 0:00:52]}  Nxe3 {[%clk 0:01:22]} 26. Nxe3 {[%clk 0:00:52]}  Qc5 {[%clk 0:01:13]} 27. Nf5 {[%clk 0:00:47]}  b4 {[%clk 0:01:10]} 28. axb4 {[%clk 0:00:44]}  Qxb4 {[%clk 0:01:10]} 29. Rd3 {[%clk 0:00:44]}  a5 {[%clk 0:01:00]} 30. Bf6 {[%clk 0:00:33]}  Rh7 {[%clk 0:00:59]} 31. Rgd1 {[%clk 0:00:33]}  Rc6 {[%clk 0:00:37]} 32. Nd5 {[%clk 0:00:18]}  Qc4 {[%clk 0:00:37]} 33. Rc3 {[%clk 0:00:11]}  Qe2 {[%clk 0:00:37]} 34. Rdd3 {[%clk 0:00:08]}  Rxc3 {[%clk 0:00:32]} 35. Rxc3 {[%clk 0:00:05]}  Bxd5 {[%clk 0:00:32]} 36. exd5 {[%clk 0:00:05]}  Kd7 {[%clk 0:00:30]} 37. Rc6 {[%clk 0:00:04]}  Qd1+ {[%clk 0:00:29]} 38. Ka2 {[%clk 0:00:00]}  Qxd5+ {[%clk 0:00:30]} 0-1


[Site "https://www.chess.com"]

[Event "Titled Tuesday Blitz July 11 Early 2023"]
[White "Kumala, Aleksander"]
[Black "Skuhala, Barbara"]
[WhiteFideId "1141880"]
[BlackFideId "14605465"]
[WhiteElo "2540"]
[BlackElo "2337"]
[Result "1-0"]
[Round "5"]
[TimeControl "180+2"]
[Date "2023.07.11"]
[WhiteClock "0:01:39"]
[BlackClock "0:01:32"]
[Board "139"]

1. d4 {[%clk 0:03:00]}  Nf6 {[%clk 0:02:58]} 2. Bg5 {[%clk 0:02:57]}  c5 {[%clk 0:02:56]} 3. d5 {[%clk 0:02:57]}  e6 {[%clk 0:02:56]} 4. e4 {[%clk 0:02:55]}  d6 {[%clk 0:02:56]} 5. Nc3 {[%clk 0:02:54]}  Nbd7 {[%clk 0:02:55]} 6. f4 {[%clk 0:02:53]}  h6 {[%clk 0:02:55]} 7. Bh4 {[%clk 0:02:53]}  Qa5 {[%clk 0:02:54]} 8. dxe6 {[%clk 0:02:49]}  fxe6 {[%clk 0:02:53]} 9. Bb5 {[%clk 0:02:35]}  Be7 {[%clk 0:02:43]} 10. Bxf6 {[%clk 0:02:34]}  Bxf6 {[%clk 0:02:42]} 11. Qh5+ {[%clk 0:02:34]}  Kf8 {[%clk 0:02:41]} 12. Bxd7 {[%clk 0:02:23]}  Bxd7 {[%clk 0:02:40]} 13. e5 {[%clk 0:02:22]}  Be8 {[%clk 0:02:34]} 14. Qe2 {[%clk 0:02:22]}  dxe5 {[%clk 0:02:28]} 15. fxe5 {[%clk 0:02:21]}  Bg5 {[%clk 0:02:28]} 16. Nf3 {[%clk 0:02:16]}  Qa6 {[%clk 0:02:25]} 17. Qf2 {[%clk 0:02:09]}  Kg8 {[%clk 0:02:24]} 18. Nxg5 {[%clk 0:02:05]}  hxg5 {[%clk 0:02:24]} 19. Qxc5 {[%clk 0:02:05]}  Bg6 {[%clk 0:02:22]} 20. O-O-O {[%clk 0:02:02]}  b6 {[%clk 0:01:57]} 21. Qe7 {[%clk 0:01:58]}  Qc8 {[%clk 0:01:52]} 22. Qxg5 {[%clk 0:01:56]}  Qe8 {[%clk 0:01:50]} 23. g4 {[%clk 0:01:53]}  Rc8 {[%clk 0:01:48]} 24. h4 {[%clk 0:01:52]}  b5 {[%clk 0:01:48]} 25. h5 {[%clk 0:01:52]}  Bxc2 {[%clk 0:01:43]} 26. Kxc2 {[%clk 0:01:50]}  b4 {[%clk 0:01:44]} 27. h6 {[%clk 0:01:50]}  g6 {[%clk 0:01:44]} 28. h7+ {[%clk 0:01:44]}  Rxh7 {[%clk 0:01:37]} 29. Rxh7 {[%clk 0:01:44]}  Kxh7 {[%clk 0:01:38]} 30. Rh1+ {[%clk 0:01:44]}  Kg8 {[%clk 0:01:32]} 31. Qf6 {[%clk 0:01:39]} 1-0


[Site "https://www.chess.com"]

[Event "Titled Tuesday Blitz July 11 Early 2023"]
[White "Wernberg, Hugo"]
[Black "Yurovskykh, Oleksandr"]
[WhiteFideId "1737511"]
[BlackFideId "14134020"]
[WhiteElo "2323"]
[BlackElo "2526"]
[Result "0-1"]
[Round "5"]
[TimeControl "180+2"]
[Date "2023.07.11"]
[WhiteClock "0:00:00"]
[BlackClock "0:00:07"]
[Board "141"]

1. d4 {[%clk 0:03:00]}  d5 {[%clk 0:02:54]} 2. c4 {[%clk 0:03:00]}  e6 {[%clk 0:02:52]} 3. Nf3 {[%clk 0:03:00]}  Nf6 {[%clk 0:02:51]} 4. g3 {[%clk 0:03:00]}  Bb4+ {[%clk 0:02:51]} 5. Bd2 {[%clk 0:03:00]}  Be7 {[%clk 0:02:50]} 6. Bg2 {[%clk 0:03:00]}  O-O {[%clk 0:02:50]} 7. O-O {[%clk 0:03:00]}  c6 {[%clk 0:02:50]} 8. Bc3 {[%clk 0:03:00]}  Nbd7 {[%clk 0:02:48]} 9. Nbd2 {[%clk 0:03:00]}  b6 {[%clk 0:02:47]} 10. b4 {[%clk 0:03:01]}  Bb7 {[%clk 0:02:21]} 11. Rb1 {[%clk 0:02:55]}  Rc8 {[%clk 0:02:16]} 12. c5 {[%clk 0:02:55]}  Qc7 {[%clk 0:02:09]} 13. Re1 {[%clk 0:02:49]}  Ba6 {[%clk 0:01:43]} 14. e4 {[%clk 0:02:19]}  Bd3 {[%clk 0:01:38]} 15. e5 {[%clk 0:02:19]}  Ne4 {[%clk 0:01:38]} 16. Rc1 {[%clk 0:01:59]}  Nxc3 {[%clk 0:01:26]} 17. Rxc3 {[%clk 0:02:00]}  Bg6 {[%clk 0:01:24]} 18. Qa4 {[%clk 0:01:50]}  Rb8 {[%clk 0:01:21]} 19. Nb3 {[%clk 0:01:35]}  bxc5 {[%clk 0:01:18]} 20. bxc5 {[%clk 0:01:30]}  Rfe8 {[%clk 0:00:30]} 21. Bh3 {[%clk 0:00:33]}  Rb5 {[%clk 0:00:26]} 22. Bf1 {[%clk 0:00:32]}  Rbb8 {[%clk 0:00:26]} 23. Na5 {[%clk 0:00:32]}  Rec8 {[%clk 0:00:19]} 24. Rb3 {[%clk 0:00:31]}  Rxb3 {[%clk 0:00:19]} 25. axb3 {[%clk 0:00:31]}  Nb8 {[%clk 0:00:19]} 26. b4 {[%clk 0:00:29]}  a6 {[%clk 0:00:19]} 27. Nb3 {[%clk 0:00:27]}  Bc2 {[%clk 0:00:18]} 28. Nfd2 {[%clk 0:00:25]}  f6 {[%clk 0:00:17]} 29. exf6 {[%clk 0:00:23]}  Bxf6 {[%clk 0:00:18]} 30. Rxe6 {[%clk 0:00:19]}  Bxd4 {[%clk 0:00:18]} 31. Qa2 {[%clk 0:00:14]}  Bxb3 {[%clk 0:00:16]} 32. Nxb3 {[%clk 0:00:15]}  Bf6 {[%clk 0:00:15]} 33. Bh3 {[%clk 0:00:12]}  Rf8 {[%clk 0:00:15]} 34. Na5 {[%clk 0:00:11]}  Bd4 {[%clk 0:00:13]} 35. Re2 {[%clk 0:00:09]}  g6 {[%clk 0:00:12]} 36. Nb3 {[%clk 0:00:09]}  Bc3 {[%clk 0:00:12]} 37. Be6+ {[%clk 0:00:08]}  Kg7 {[%clk 0:00:12]} 38. Qc2 {[%clk 0:00:08]}  Bf6 {[%clk 0:00:11]} 39. Qd3 {[%clk 0:00:07]}  Re8 {[%clk 0:00:10]} 40. Nd4 {[%clk 0:00:06]}  Re7 {[%clk 0:00:09]} 41. Bh3 {[%clk 0:00:03]}  Rxe2 {[%clk 0:00:06]} 42. Nxe2 {[%clk 0:00:03]}  Qe5 {[%clk 0:00:07]} 43. Nf4 {[%clk 0:00:04]}  Qc3 {[%clk 0:00:06]} 44. Ne6+ {[%clk 0:00:03]}  Kf7 {[%clk 0:00:06]} 45. Qe2 {[%clk 0:00:01]}  Qa1+ {[%clk 0:00:06]} 46. Kg2 {[%clk 0:00:01]}  Qe5 {[%clk 0:00:06]} 47. Qxe5 {[%clk 0:00:01]}  Bxe5 {[%clk 0:00:07]} 48. Nd8+ {[%clk 0:00:00]}  Ke7 {[%clk 0:00:07]} 0-1


[Site "https://www.chess.com"]

[Event "Titled Tuesday Blitz July 11 Early 2023"]
[White "Szente Varga, Fruzsina"]
[Black "Goltseva, Ekaterina"]
[WhiteFideId "712264"]
[BlackFideId "24173770"]
[WhiteElo "2318"]
[BlackElo "2515"]
[Result "0-1"]
[Round "5"]
[TimeControl "180+2"]
[Date "2023.07.11"]
[WhiteClock "0:00:00"]
[BlackClock "0:00:17"]
[Board "142"]

1. e4 {[%clk 0:03:00]}  e6 {[%clk 0:02:40]} 2. d4 {[%clk 0:02:59]}  d5 {[%clk 0:02:39]} 3. Nd2 {[%clk 0:02:58]}  c5 {[%clk 0:02:38]} 4. exd5 {[%clk 0:02:58]}  Qxd5 {[%clk 0:02:37]} 5. Ngf3 {[%clk 0:02:58]}  cxd4 {[%clk 0:02:37]} 6. Bc4 {[%clk 0:02:58]}  Qd6 {[%clk 0:02:31]} 7. O-O {[%clk 0:02:58]}  Nc6 {[%clk 0:02:30]} 8. Nb3 {[%clk 0:02:51]}  Nf6 {[%clk 0:02:30]} 9. Bb5 {[%clk 0:02:46]}  Bd7 {[%clk 0:02:24]} 10. Nbxd4 {[%clk 0:02:44]}  Nxd4 {[%clk 0:02:22]} 11. Bxd7+ {[%clk 0:02:44]}  Qxd7 {[%clk 0:02:21]} 12. Qxd4 {[%clk 0:02:37]}  Qxd4 {[%clk 0:02:20]} 13. Nxd4 {[%clk 0:02:38]}  Bc5 {[%clk 0:02:20]} 14. Nb3 {[%clk 0:02:36]}  Bb6 {[%clk 0:02:19]} 15. a4 {[%clk 0:02:34]}  a6 {[%clk 0:02:13]} 16. a5 {[%clk 0:02:13]}  Ba7 {[%clk 0:02:11]} 17. Bd2 {[%clk 0:01:56]}  Ne4 {[%clk 0:02:00]} 18. Bb4 {[%clk 0:01:54]}  Rc8 {[%clk 0:01:51]} 19. c3 {[%clk 0:01:50]}  Nc5 {[%clk 0:01:37]} 20. Nxc5 {[%clk 0:01:45]}  Bxc5 {[%clk 0:01:38]} 21. Bxc5 {[%clk 0:01:45]}  Rxc5 {[%clk 0:01:38]} 22. Rfd1 {[%clk 0:01:46]}  Ke7 {[%clk 0:01:38]} 23. Rd3 {[%clk 0:01:43]}  Rd8 {[%clk 0:01:35]} 24. Rxd8 {[%clk 0:01:34]}  Kxd8 {[%clk 0:01:36]} 25. Kf1 {[%clk 0:01:34]}  Rd5 {[%clk 0:01:26]} 26. Ke2 {[%clk 0:01:34]}  Kc7 {[%clk 0:01:26]} 27. Ra4 {[%clk 0:01:11]}  Kc6 {[%clk 0:01:23]} 28. Rc4+ {[%clk 0:01:06]}  Kd7 {[%clk 0:01:08]} 29. b4 {[%clk 0:01:04]}  e5 {[%clk 0:01:04]} 30. Rh4 {[%clk 0:00:57]}  h6 {[%clk 0:01:03]} 31. Rg4 {[%clk 0:00:57]}  g6 {[%clk 0:01:03]} 32. c4 {[%clk 0:00:37]}  Rd6 {[%clk 0:01:01]} 33. Re4 {[%clk 0:00:27]}  Re6 {[%clk 0:01:00]} 34. Kd3 {[%clk 0:00:21]}  f5 {[%clk 0:00:59]} 35. Rh4 {[%clk 0:00:21]}  g5 {[%clk 0:00:56]} 36. Rh3 {[%clk 0:00:22]}  Rd6+ {[%clk 0:00:53]} 37. Kc3 {[%clk 0:00:22]}  e4 {[%clk 0:00:53]} 38. b5 {[%clk 0:00:16]}  f4 {[%clk 0:00:33]} 39. Kb4 {[%clk 0:00:14]}  Re6 {[%clk 0:00:28]} 40. Kc3 {[%clk 0:00:12]}  e3 {[%clk 0:00:21]} 41. fxe3 {[%clk 0:00:12]}  fxe3 {[%clk 0:00:22]} 42. bxa6 {[%clk 0:00:08]}  bxa6 {[%clk 0:00:19]} 43. Rf3 {[%clk 0:00:03]}  e2 {[%clk 0:00:19]} 44. Rd3+ {[%clk 0:00:03]}  Kc6 {[%clk 0:00:18]} 45. Rd5 {[%clk 0:00:03]}  e1=Q+ {[%clk 0:00:18]} 46. Kb3 {[%clk 0:00:00]}  Re3+ {[%clk 0:00:17]} 0-1


[Site "https://www.chess.com"]